[Event "Eurasia Open Cup 2019"]
[Site "Ekaterinburg"]
[Date "2019.07.31"]
[Round "1.12"]
[White "Abramov, Ilya"]
[Black "Khanin, Semen"]
[Result "1-0"]
[ECO "E10"]
[WhiteElo "2065"]
[BlackElo "2517"]
[Annotator "ChessBase"]
[PlyCount "97"]
[EventDate "2019.07.31"]
[EventType "swiss"]
[EventCountry "RUS"]
[SourceTitle "playchess.com"]
[Source "ChessBase"]
[SourceQuality "1"]
[TimeControl "5400+30"]

1. d4 {[%emt 0:17:24]} Nf6 {[%emt 0:51:32]} 2. c4 {[%emt 0:27:15]} e6 {[%emt 0:01:13]} 3. Nf3 {[%emt 0:03:31]} a6 {[%emt 0:09:43]} 4. Bg5 {[%emt 0:00:09]} d5 {[%emt 0:00:16]} 5. e3 {[%emt 0:02:44]} dxc4 {[%emt 0:00:33]} 6. Bxc4 {[%emt 0:00:13]} b5 {[%emt 0:04:06]} 7. Be2 {[%emt 0:21:45]} Bb7 {[%emt 0:02:13]} 8. O-O {[%emt 0:04:03]} Nbd7 {[%emt 0:04:21]} 9. a4 {[%emt 0:00:03]} c6 {[%emt 0:00:40]} 10. Nbd2 {[%emt 0:05:39]} Qb6 {[%emt 0:04:23]} 11. Qb3 {[%emt 0:03:00]} h6 {[%emt 0:02:01]} 12. Bh4 {[%emt 0:00:51]} Be7 {[%emt 0:01:07]} 13. Ne5 {[%emt 0:00:02]} Nxe5 {[%emt 0:00:00]} 14. dxe5 {[%emt 0:01:56]} Nd7 {[%emt 0:00:14]} 15. Bxe7 {[%emt 0:00:03]} Kxe7 {[%emt 0:00:11]} 16. Rac1 {[%emt 0:00:02]} Rhd8 {[%emt 0:02:56]} 17. f4 {[%emt 0:02:11]} Nc5 {[%emt 0:00:31]} 18. Qb4 {[%emt 0:00:11]} a5 {[%emt 0:01:28]} 19. Nc4 {[%emt 0:00:16]} axb4 {[%emt 0:01:10]} 20. Nxb6 {[%emt 0:00:12]} Nxa4 {[%emt 0:00:08]} 21. Nxa8 {[%emt 0:02:12]} Bxa8 {[%emt 0:01:00]} 22. Rfd1 {[%emt 0:00:33]} Bb7 {[%emt 0:01:28]} 23. Kf2 {[%emt 0:01:19]} b3 {[%emt 0:01:07]} 24. Rxd8 {[%emt 0:00:50]} Kxd8 {[%emt 0:02:39]} 25. Ke1 {[%emt 0:00:35]} b4 {[%emt 0:00:43]} 26. Kd2 {[%emt 0:00:13]} Kc7 {[%emt 0:00:22]} 27. Bd1 {[%emt 0:00:06]} Nxb2 {[%emt 0:00:29]} 28. Bxb3 {[%emt 0:00:07]} Ba6 {[%emt 0:00:54]} 29. Rb1 {[%emt 0:00:37]} Nd3 {[%emt 0:00:37]} 30. Bc2 {[%emt 0:00:00]} Nc5 {[%emt 0:00:23]} 31. Rxb4 {[%emt 0:02:07]} Bb5 {[%emt 0:00:39]} 32. Kc3 {[%emt 0:00:04]} g6 {[%emt 0:00:20]} 33. Rb1 {[%emt 0:00:33]} h5 {[%emt 0:00:48]} 34. Kd4 {[%emt 0:06:14]} Kb6 {[%emt 0:06:45]} 35. g3 {[%emt 0:00:30]} Na6 {[%emt 0:00:30]} 36. Bd3 {[%emt 0:00:30]} Nc5 {[%emt 0:00:30]} 37. Bc4 {[%emt 0:00:30]} Na6 {[%emt 0:00:30]} 38. e4 {[%emt 0:00:30]} Nc5 {[%emt 0:00:30]} 39. f5 {[%emt 0:00:30]} g5 {[%emt 0:00:30]} 40. h3 {[%emt 0:00:30]} h4 {[%emt 0:00:30]} 41. g4 {[%emt 0:00:30]} Na4 {[%emt 0:00:30]} 42. fxe6 {[%emt 0:00:30]} fxe6 {[%emt 0:00:30]} 43. Bxe6 {[%emt 0:00:30]} Kc7 {[%emt 0:00:30]} 44. Bc4 {[%emt 0:00:30]} c5+ {[%emt 0:00:30]} 45. Kd3 {[%emt 0:00:30]} Bc6 {[%emt 0:00:30]} 46. Bd5 {[%emt 0:00:30]} Bd7 {[%emt 0:00:30]} 47. Rb7+ {[%emt 0:00:30]} Kc8 {[%emt 0:00:30]} 48. Ra7 {[%emt 0:00:30]} Bb5+ {[%emt 0:00:30]} 49. Kc2 {[%emt 0:00:30]} 1-0

[Event "Eurasia Open Cup 2019"]
[Site "Ekaterinburg"]
[Date "2019.07.31"]
[Round "1.13"]
[White "Vokhidov, Shamsiddin"]
[Black "Lysenko, Maria"]
[Result "1-0"]
[ECO "B31"]
[WhiteElo "2515"]
[BlackElo "2064"]
[Annotator "ChessBase"]
[PlyCount "55"]
[EventDate "2019.07.31"]
[EventType "swiss"]
[EventCountry "RUS"]
[SourceTitle "playchess.com"]
[Source "ChessBase"]
[SourceQuality "1"]
[TimeControl "5400+30"]

1. e4 {[%emt 1:30:00]} c5 {[%emt 1:30:00]} 2. Nf3 {[%emt 0:00:30]} Nc6 {[%emt 0:00:30]} 3. Bb5 {[%emt 0:00:30]} g6 {[%emt 0:00:30]} 4. O-O {[%emt 0:00:30]} Bg7 {[%emt 0:00:30]} 5. Re1 {[%emt 0:00:30]} Nf6 {[%emt 0:00:30]} 6. e5 {[%emt 0:00:30]} Nd5 {[%emt 0:00:30]} 7. Nc3 {[%emt 0:00:30]} Nc7 {[%emt 0:00:30]} 8. Bxc6 {[%emt 0:00:30]} dxc6 {[%emt 0:00:30]} 9. Ne4 {[%emt 0:00:30]} Ne6 {[%emt 0:00:30]} 10. d3 {[%emt 0:00:30]} O-O {[%emt 0:00:30]} 11. Be3 {[%emt 0:00:30]} b6 {[%emt 0:00:30]} 12. Qd2 {[%emt 0:01:00]} f5 {[%emt 0:01:00]} 13. exf6 {[%emt 0:00:30]} exf6 {[%emt 0:00:30]} 14. Bh6 {[%emt 0:00:30]} Nd4 {[%emt 0:00:30]} 15. Nxd4 {[%emt 0:00:30]} cxd4 {[%emt 0:00:30]} 16. Bxg7 {[%emt 0:00:30]} Kxg7 {[%emt 0:00:30]} 17. Qf4 {[%emt 0:00:30]} Qd7 {[%emt 0:00:30]} 18. Nd6 {[%emt 0:00:30]} Rd8 {[%emt 0:00:30]} 19. Ne4 {[%emt 0:00:30]} Qf5 {[%emt 0:00:30]} 20. Qh4 {[%emt 0:00:30]} g5 {[%emt 0:00:30]} 21. Qh5 {[%emt 0:00:30]} Qg6 {[%emt 0:00:30]} 22. Qf3 {[%emt 0:00:30]} Qf5 {[%emt 0:00:30]} 23. Qe2 {[%emt 0:00:30]} Ba6 {[%emt 0:00:30]} 24. Ng3 {[%emt 0:00:30]} Qd7 {[%emt 0:00:30]} 25. Qf3 {[%emt 0:00:30]} Kf7 {[%emt 0:00:30]} 26. Nf5 {[%emt 0:00:30]} Re8 {[%emt 0:00:30]} 27. Qh3 {[%emt 0:00:30]} Kf8 {[%emt 0:00:30]} 28. Qh6+ {[%emt 0:00:30]} 1-0

[Event "Eurasia Open Cup 2019"]
[Site "Ekaterinburg"]
[Date "2019.07.31"]
[Round "1.14"]
[White "Gerasimov, Aleksander"]
[Black "Afanasiev, Nikita"]
[Result "0-1"]
[ECO "A40"]
[WhiteElo "2056"]
[BlackElo "2514"]
[Annotator "ChessBase"]
[PlyCount "28"]
[EventDate "2019.07.31"]
[EventType "swiss"]
[EventCountry "RUS"]
[SourceTitle "playchess.com"]
[Source "ChessBase"]
[SourceQuality "1"]
[TimeControl "5400+30"]

1. d4 {[%emt 0:45:06]} g6 {[%emt 0:26:58]} 2. c4 {[%emt 0:23:48]} Bg7 {[%emt 0:03:48]} 3. Nc3 {[%emt 0:01:41]} c5 {[%emt 0:00:10]} 4. d5 {[%emt 0:21:25]} Bxc3+ {[%emt 1:01:04]} 5. bxc3 {[%emt 0:00:30]} f5 {[%emt 0:00:30]} 6. Nf3 {[%emt 0:00:30]} Qa5 {[%emt 0:00:30]} 7. Qc2 {[%emt 0:00:30]} Nf6 {[%emt 0:00:30]} 8. e3 {[%emt 0:00:30]} d6 {[%emt 0:00:30]} 9. Be2 {[%emt 0:00:30]} Nfd7 {[%emt 0:00:30]} 10. O-O {[%emt 0:00:30]} Rg8 {[%emt 0:00:30]} 11. Nd2 {[%emt 0:00:30]} Nb6 {[%emt 0:00:30]} 12. a4 {[%emt 0:00:30]} e5 {[%emt 0:00:30]} 13. f3 {[%emt 0:00:30]} N6d7 {[%emt 0:00:30]} 14. Nb3 {[%emt 0:00:30]} Qd8 {[%emt 0:00:30]} 0-1

[Event "Eurasia Open Cup 2019"]
[Site "Ekaterinburg"]
[Date "2019.07.31"]
[Round "1.15"]
[White "Bocharov, Dmitry"]
[Black "Karpytchev, Vladimir"]
[Result "1-0"]
[ECO "D53"]
[WhiteElo "2506"]
[BlackElo "2043"]
[Annotator "ChessBase"]
[PlyCount "87"]
[EventDate "2019.07.31"]
[EventType "swiss"]
[EventCountry "RUS"]
[SourceTitle "playchess.com"]
[Source "ChessBase"]
[SourceQuality "1"]
[TimeControl "5400+30"]

1. Nf3 {[%emt 0:35:21]} Nf6 {[%emt 0:22:34]} 2. c4 {[%emt 0:05:45]} e6 {[%emt 0:02:22]} 3. Nc3 {[%emt 0:06:22]} d5 {[%emt 0:00:34]} 4. d4 {[%emt 0:00:38]} dxc4 {[%emt 0:02:17]} 5. Bg5 {[%emt 0:00:22]} Be7 {[%emt 0:00:10]} 6. e3 {[%emt 0:04:53]} O-O {[%emt 0:01:16]} 7. Bxc4 {[%emt 0:00:20]} a6 {[%emt 0:02:39]} 8. O-O {[%emt 0:00:13]} b5 {[%emt 0:00:44]} 9. Bd3 {[%emt 0:06:42]} Bb7 {[%emt 0:01:50]} 10. Bxf6 {[%emt 0:00:07]} Bxf6 {[%emt 0:00:31]} 11. Be4 {[%emt 0:00:04]} Bd5 {[%emt 0:00:05]} 12. Qc2 {[%emt 0:00:30]} g6 {[%emt 0:00:44]} 13. Bxd5 {[%emt 0:03:59]} exd5 {[%emt 0:01:22]} 14. Rac1 {[%emt 0:00:50]} Re8 {[%emt 0:00:49]} 15. Rfd1 {[%emt 0:02:40]} c6 {[%emt 0:02:16]} 16. Ne2 {[%emt 0:02:48]} Qd6 {[%emt 0:03:43]} 17. Nf4 {[%emt 0:00:00]} Rc8 {[%emt 0:00:12]} 18. Qc5 {[%emt 0:00:13]} Qd8 {[%emt 0:00:19]} 19. Nxd5 {[%emt 0:01:29]} Nd7 {[%emt 0:03:35]} 20. Nxf6+ {[%emt 0:00:35]} Qxf6 {[%emt 0:15:25]} 21. Qc3 {[%emt 0:07:56]} Qe6 {[%emt 0:07:03]} 22. Qa3 {[%emt 0:01:56]} Qd5 {[%emt 0:00:44]} 23. b4 {[%emt 0:07:28]} Nb6 {[%emt 0:01:24]} 24. Ne5 {[%emt 0:04:08]} f6 {[%emt 0:02:34]} 25. Rc5 {[%emt 0:07:11]} Qe6 {[%emt 0:27:18]} 26. Nd3 {[%emt 0:00:30]} a5 {[%emt 0:00:30]} 27. bxa5 {[%emt 0:00:30]} Nc4 {[%emt 0:00:30]} 28. Qb3 {[%emt 0:00:30]} Rxa5 {[%emt 0:00:30]} 29. d5 {[%emt 0:00:30]} Qd6 {[%emt 0:00:30]} 30. Rxc6 {[%emt 0:00:30]} Rxc6 {[%emt 0:00:30]} 31. dxc6 {[%emt 0:00:30]} Qxc6 {[%emt 0:00:30]} 32. Nb4 {[%emt 0:00:30]} Qe6 {[%emt 0:00:30]} 33. Nd5 {[%emt 0:00:30]} Kg7 {[%emt 0:00:30]} 34. h3 {[%emt 0:00:30]} Qe5 {[%emt 0:00:30]} 35. Nf4 {[%emt 0:00:30]} Qb2 {[%emt 0:00:30]} 36. Rd7+ {[%emt 0:00:30]} Kh6 {[%emt 0:00:30]} 37. Qxb2 {[%emt 0:00:30]} Nxb2 {[%emt 0:00:30]} 38. Nd5 {[%emt 0:00:30]} Ra6 {[%emt 0:00:30]} 39. Rb7 {[%emt 0:00:30]} Nd3 {[%emt 0:00:30]} 40. Rxb5 {[%emt 0:00:30]} f5 {[%emt 0:00:30]} 41. Rb3 {[%emt 0:00:30]} Nc1 {[%emt 0:00:30]} 42. Rb7 {[%emt 0:00:30]} Nxa2 {[%emt 0:00:30]} 43. f4 {[%emt 0:00:30]} Re6 {[%emt 0:00:30]} 44. g4 {[%emt 0:00:30]} 1-0

[Event "Eurasia Open Cup 2019"]
[Site "Ekaterinburg"]
[Date "2019.07.31"]
[Round "1.16"]
[White "Osipov, Igor"]
[Black "Burmakin, Vladimir"]
[Result "0-1"]
[ECO "D36"]
[WhiteElo "2030"]
[BlackElo "2506"]
[Annotator "ChessBase"]
[PlyCount "89"]
[EventDate "2019.07.31"]
[EventType "swiss"]
[EventCountry "RUS"]
[SourceTitle "playchess.com"]
[Source "ChessBase"]
[SourceQuality "1"]
[TimeControl "5400+30"]

1. d4 {[%emt 0:14:24]} Nf6 {[%emt 0:38:17]} 2. c4 {[%emt 0:11:33]} e6 {[%emt 0:03:10]} 3. Nc3 {[%emt 0:00:12]} d5 {[%emt 0:01:25]} 4. cxd5 {[%emt 0:00:20]} exd5 {[%emt 0:01:09]} 5. Bg5 {[%emt 0:00:15]} c6 {[%emt 0:00:46]} 6. e3 {[%emt 0:01:00]} Be7 {[%emt 0:01:38]} 7. Bd3 {[%emt 0:09:51]} Nbd7 {[%emt 0:03:45]} 8. Qc2 {[%emt 0:00:16]} Nf8 {[%emt 0:00:35]} 9. Nf3 {[%emt 0:00:55]} Ne6 {[%emt 0:00:41]} 10. Bh4 {[%emt 0:01:08]} g6 {[%emt 0:00:06]} 11. Ne2 {[%emt 0:02:15]} Ng7 {[%emt 0:05:14]} 12. Ng3 {[%emt 0:04:01]} Qa5+ {[%emt 0:00:34]} 13. Nd2 {[%emt 0:06:50]} Be6 {[%emt 0:00:56]} 14. O-O {[%emt 0:01:08]} Qd8 {[%emt 0:02:08]} 15. Nf3 {[%emt 0:01:41]} O-O {[%emt 0:01:19]} 16. Ne5 {[%emt 0:13:06]} Nfe8 {[%emt 0:00:57]} 17. Bxe7 {[%emt 0:00:15]} Qxe7 {[%emt 0:00:18]} 18. Rab1 {[%emt 0:00:03]} Nd6 {[%emt 0:00:09]} 19. b4 {[%emt 0:04:44]} Rfc8 {[%emt 0:00:36]} 20. Qa4 {[%emt 0:00:17]} Nc4 {[%emt 0:00:06]} 21. Nf3 {[%emt 0:00:43]} b5 {[%emt 0:01:06]} 22. Qd1 {[%emt 0:00:48]} a5 {[%emt 0:00:35]} 23. bxa5 {[%emt 0:00:14]} Rxa5 {[%emt 0:00:16]} 24. Ra1 {[%emt 0:05:32]} Rca8 {[%emt 0:01:40]} 25. Qc2 {[%emt 0:00:08]} Qa7 {[%emt 0:01:53]} 26. Bxc4 {[%emt 0:03:36]} bxc4 {[%emt 0:01:47]} 27. Rfb1 {[%emt 0:01:53]} Nf5 {[%emt 0:32:24]} 28. Rb2 {[%emt 0:16:52]} Nxg3 {[%emt 0:00:30]} 29. hxg3 {[%emt 0:00:30]} Bf5 {[%emt 0:00:30]} 30. Qc1 {[%emt 0:00:30]} Ra3 {[%emt 0:00:30]} 31. Ne5 {[%emt 0:00:30]} c3 {[%emt 0:00:30]} 32. Re2 {[%emt 0:00:30]} Qa6 {[%emt 0:00:30]} 33. Qe1 {[%emt 0:00:30]} f6 {[%emt 0:00:30]} 34. g4 {[%emt 0:00:30]} Be6 {[%emt 0:00:30]} 35. Nf3 {[%emt 0:00:30]} Bxg4 {[%emt 0:00:30]} 36. Rc2 {[%emt 0:00:30]} Qd3 {[%emt 0:00:30]} 37. Rac1 {[%emt 0:00:30]} Bxf3 {[%emt 0:00:30]} 38. gxf3 {[%emt 0:00:30]} Qf5 {[%emt 0:00:30]} 39. f4 {[%emt 0:00:30]} Qg4+ {[%emt 0:00:30]} 40. Kf1 {[%emt 0:00:30]} Qf3 {[%emt 0:00:30]} 41. Kg1 {[%emt 0:00:30]} Kg7 {[%emt 0:00:30]} 42. Rxc3 {[%emt 0:00:30]} Rxa2 {[%emt 0:00:30]} 43. R3c2 {[%emt 0:00:30]} h5 {[%emt 0:00:30]} 44. Qf1 {[%emt 0:00:30]} Qg4+ {[%emt 0:00:30]} 45. Qg2 {[%emt 0:00:30]} 0-1

[Event "Eurasia Open Cup 2019"]
[Site "Ekaterinburg"]
[Date "2019.07.31"]
[Round "1.17"]
[White "Gleizerov, Evgeny"]
[Black "Kozlov, Denis"]
[Result "1-0"]
[ECO "E18"]
[WhiteElo "2498"]
[BlackElo "2013"]
[Annotator "ChessBase"]
[PlyCount "41"]
[EventDate "2019.07.31"]
[EventType "swiss"]
[EventCountry "RUS"]
[SourceTitle "playchess.com"]
[Source "ChessBase"]
[SourceQuality "1"]
[TimeControl "5400+30"]

1. d4 {[%emt 0:22:34]} Nf6 {[%emt 0:39:14]} 2. c4 {[%emt 0:06:22]} e6 {[%emt 0:07:23]} 3. g3 {[%emt 0:02:08]} b6 {[%emt 0:18:22]} 4. Bg2 {[%emt 0:10:05]} d5 {[%emt 0:03:24]} 5. Nf3 {[%emt 0:00:39]} Be7 {[%emt 0:03:23]} 6. O-O {[%emt 0:05:03]} O-O {[%emt 0:00:05]} 7. cxd5 {[%emt 0:02:54]} exd5 {[%emt 0:02:34]} 8. Nc3 {[%emt 0:02:45]} Bb7 {[%emt 0:04:41]} 9. Qc2 {[%emt 0:03:31]} Na6 {[%emt 0:03:02]} 10. Bf4 {[%emt 0:38:59]} c5 {[%emt 0:12:52]} 11. Rad1 {[%emt 0:00:30]} Qe8 {[%emt 0:00:30]} 12. Be5 {[%emt 0:00:30]} Rc8 {[%emt 0:00:30]} 13. dxc5 {[%emt 0:00:30]} Nxc5 {[%emt 0:00:30]} 14. Bh3 {[%emt 0:00:30]} Rd8 {[%emt 0:00:30]} 15. Nd4 {[%emt 0:00:30]} Nfe4 {[%emt 0:00:30]} 16. Ncb5 {[%emt 0:00:30]} Bf6 {[%emt 0:00:30]} 17. Bxf6 {[%emt 0:00:30]} Nxf6 {[%emt 0:00:30]} 18. b4 {[%emt 0:00:30]} Nce4 {[%emt 0:00:30]} 19. Nxa7 {[%emt 0:00:30]} Nd6 {[%emt 0:00:30]} 20. Qc7 {[%emt 0:00:30]} Nfe4 {[%emt 0:00:30]} 21. Nac6 {[%emt 0:00:30]} 1-0

[Event "Eurasia Open Cup 2019"]
[Site "Ekaterinburg"]
[Date "2019.07.31"]
[Round "1.18"]
[White "Vinokur, Yuliya"]
[Black "Drygalov, Andrey"]
[Result "1-0"]
[ECO "D78"]
[WhiteElo "2013"]
[BlackElo "2494"]
[Annotator "ChessBase"]
[PlyCount "55"]
[EventDate "2019.07.31"]
[EventType "swiss"]
[EventCountry "RUS"]
[SourceTitle "playchess.com"]
[Source "ChessBase"]
[SourceQuality "1"]
[TimeControl "5400+30"]

1. d4 {[%emt 0:29:25]} Nf6 {[%emt 0:33:24]} 2. Nf3 {[%emt 0:05:26]} g6 {[%emt 0:08:00]} 3. g3 {[%emt 0:15:51]} Bg7 {[%emt 0:00:37]} 4. Bg2 {[%emt 0:00:29]} O-O {[%emt 0:10:43]} 5. O-O {[%emt 0:05:00]} d5 {[%emt 0:09:05]} 6. Ne5 {[%emt 0:09:56]} c6 {[%emt 0:04:05]} 7. c4 {[%emt 0:03:13]} dxc4 {[%emt 0:00:00]} 8. Na3 {[%emt 0:03:42]} Be6 {[%emt 0:00:00]} 9. Naxc4 {[%emt 0:00:08]} Bd5 {[%emt 0:03:29]} 10. Qd3 {[%emt 0:06:18]} Bxg2 {[%emt 0:01:38]} 11. Kxg2 {[%emt 0:00:07]} Nfd7 {[%emt 0:01:34]} 12. Nf3 {[%emt 0:02:54]} Na6 {[%emt 0:01:17]} 13. Rd1 {[%emt 0:00:48]} Nb6 {[%emt 0:00:15]} 14. Na5 {[%emt 0:01:09]} Nd5 {[%emt 0:00:18]} 15. Nxc6 {[%emt 0:00:10]} Qc7 {[%emt 0:00:04]} 16. Nce5 {[%emt 0:04:25]} Ndb4 {[%emt 0:23:31]} 17. Qb3 {[%emt 0:09:29]} Rad8 {[%emt 0:00:30]} 18. Bg5 {[%emt 0:00:30]} Nd5 {[%emt 0:00:30]} 19. Rac1 {[%emt 0:00:30]} Qb8 {[%emt 0:00:30]} 20. e4 {[%emt 0:00:30]} Nf6 {[%emt 0:00:30]} 21. Bf4 {[%emt 0:00:30]} Rd6 {[%emt 0:00:30]} 22. Nc4 {[%emt 0:00:30]} Nxe4 {[%emt 0:00:30]} 23. Re1 {[%emt 0:00:30]} g5 {[%emt 0:00:30]} 24. Nxd6 {[%emt 0:00:30]} Nxd6 {[%emt 0:00:30]} 25. Nxg5 {[%emt 0:00:30]} Qd8 {[%emt 0:00:30]} 26. Qd3 {[%emt 0:00:30]} Re8 {[%emt 0:00:30]} 27. Qxh7+ {[%emt 0:00:30]} Kf8 {[%emt 0:00:30]} 28. Be5 {[%emt 0:00:30]} 1-0

[Event "Eurasia Open Cup 2019"]
[Site "Ekaterinburg"]
[Date "2019.07.31"]
[Round "1.19"]
[White "Drygalov, Sergey"]
[Black "Khmelev, Mikhail"]
[Result "1-0"]
[ECO "E15"]
[WhiteElo "2492"]
[BlackElo "2013"]
[Annotator "ChessBase"]
[PlyCount "105"]
[EventDate "2019.07.31"]
[EventType "swiss"]
[EventCountry "RUS"]
[SourceTitle "playchess.com"]
[Source "ChessBase"]
[SourceQuality "1"]
[TimeControl "5400+30"]

1. d4 {[%emt 0:34:38]} Nf6 {[%emt 0:17:19]} 2. c4 {[%emt 0:00:39]} e6 {[%emt 0:05:06]} 3. Nf3 {[%emt 0:00:47]} b6 {[%emt 0:00:00]} 4. g3 {[%emt 0:00:19]} Ba6 {[%emt 0:00:00]} 5. Qc2 {[%emt 0:03:36]} Bb4+ {[%emt 0:08:59]} 6. Bd2 {[%emt 0:04:35]} Qe7 {[%emt 0:13:58]} 7. Bg2 {[%emt 0:04:13]} c6 {[%emt 0:00:47]} 8. a3 {[%emt 0:03:08]} Bxd2+ {[%emt 0:00:18]} 9. Nbxd2 {[%emt 0:04:52]} d6 {[%emt 0:01:43]} 10. O-O {[%emt 0:05:03]} O-O {[%emt 0:13:41]} 11. e4 {[%emt 0:00:35]} e5 {[%emt 0:00:50]} 12. b4 {[%emt 0:03:00]} Nbd7 {[%emt 0:13:24]} 13. Rfc1 {[%emt 0:00:28]} Rac8 {[%emt 0:00:13]} 14. Qa4 {[%emt 0:00:07]} Bxc4 {[%emt 0:03:51]} 15. dxe5 {[%emt 0:02:09]} dxe5 {[%emt 0:01:05]} 16. Nxc4 {[%emt 0:00:00]} b5 {[%emt 0:00:08]} 17. Qxa7 {[%emt 0:02:33]} bxc4 {[%emt 0:00:18]} 18. Qe3 {[%emt 0:01:09]} Ra8 {[%emt 0:02:16]} 19. Rxc4 {[%emt 0:01:37]} Ra6 {[%emt 0:00:08]} 20. Rac1 {[%emt 0:00:08]} Qd6 {[%emt 0:01:05]} 21. R4c3 {[%emt 0:00:26]} Rfa8 {[%emt 0:03:27]} 22. Bf1 {[%emt 0:01:00]} Rb6 {[%emt 0:00:27]} 23. Rd3 {[%emt 0:00:09]} Qe7 {[%emt 0:00:23]} 24. Nd2 {[%emt 0:00:58]} c5 {[%emt 0:00:31]} 25. bxc5 {[%emt 0:00:13]} Rc6 {[%emt 0:00:05]} 26. Rdc3 {[%emt 0:00:51]} Ra5 {[%emt 0:00:05]} 27. a4 {[%emt 0:00:04]} Raxc5 {[%emt 0:01:51]} 28. Bb5 {[%emt 0:00:43]} Rc7 {[%emt 0:03:18]} 29. Rxc5 {[%emt 0:00:42]} Nxc5 {[%emt 0:00:15]} 30. a5 {[%emt 0:00:40]} g6 {[%emt 0:00:37]} 31. Bf1 {[%emt 0:01:04]} Kg7 {[%emt 0:09:22]} 32. Ra1 {[%emt 0:25:34]} Ra7 {[%emt 0:00:30]} 33. a6 {[%emt 0:00:30]} Qd6 {[%emt 0:00:30]} 34. Rc1 {[%emt 0:00:30]} Nfd7 {[%emt 0:00:30]} 35. Nb3 {[%emt 0:00:30]} Nxb3 {[%emt 0:00:30]} 36. Qxb3 {[%emt 0:00:30]} Qd4 {[%emt 0:00:30]} 37. Qd3 {[%emt 0:00:30]} Qxd3 {[%emt 0:00:30]} 38. Bxd3 {[%emt 0:00:30]} Kf6 {[%emt 0:00:30]} 39. Bb5 {[%emt 0:00:30]} Ke7 {[%emt 0:00:30]} 40. f3 {[%emt 0:00:30]} Nf8 {[%emt 0:00:30]} 41. Kf2 {[%emt 0:00:30]} Ne6 {[%emt 0:00:30]} 42. Ke3 {[%emt 0:00:30]} Nd4 {[%emt 0:00:30]} 43. Bd3 {[%emt 0:00:30]} Ne6 {[%emt 0:00:30]} 44. f4 {[%emt 0:00:30]} f6 {[%emt 0:00:30]} 45. h4 {[%emt 0:00:30]} h6 {[%emt 0:00:30]} 46. Rc6 {[%emt 0:00:30]} exf4+ {[%emt 0:00:30]} 47. gxf4 {[%emt 0:00:30]} g5 {[%emt 0:00:30]} 48. hxg5 {[%emt 0:00:30]} hxg5 {[%emt 0:00:30]} 49. f5 {[%emt 0:00:30]} Nf8 {[%emt 0:00:30]} 50. Bb5 {[%emt 0:00:30]} Nh7 {[%emt 0:00:30]} 51. Kf3 {[%emt 0:00:30]} Nf8 {[%emt 0:00:30]} 52. Rb6 {[%emt 0:00:30]} Rc7 {[%emt 0:00:30]} 53. Rb7 {[%emt 0:00:30]} 1-0